bitfinex/quotes_SOLUSD_20241028
["timestamp","ask_amount","ask_price","bid_price","bid_amount"]
[1730130998116,70.0,173.85,173.81,12.04530126]
[1730130999624,70.0,173.83,173.81,0.5946434]
[1730131000527,41.45065786,173.82,173.81,0.5946434]
[1730131003343,30.0,173.82,173.81,0.5946434]
[1730131004336,41.45065786,173.82,173.81,0.5946434]
[1730131005542,30.0,173.82,173.81,0.5946434]
[1730131008112,70.0,173.83,173.81,0.5946434]
[1730131011021,30.0,173.82,173.81,0.5946434]
[1730131011925,41.45065786,173.82,173.81,0.5946434]
[1730131012536,47.20365786,173.82,173.81,0.5946434]
[1730131013553,35.753,173.82,173.81,0.5946434]
[1730131013734,47.20365786,173.82,173.81,0.5946434]
[1730131014428,35.753,173.82,173.81,0.5946434]
[1730131014630,47.30365786,173.82,173.81,0.5946434]
[1730131014826,35.853,173.82,173.81,0.5946434]
[1730131015051,47.30365786,173.82,173.81,0.5946434]
[1730131015231,35.753,173.82,173.81,0.5946434]
[1730131015433,47.20365786,173.82,173.81,0.5946434]
[1730131015730,47.30365786,173.82,173.81,0.5946434]
[1730131016136,47.20365786,173.82,173.81,0.5946434]
[1730131016562,47.30365786,173.82,173.81,0.5946434]
[1730131017962,70.0,173.83,173.81,0.5946434]
[1730131018137,11.45065786,173.82,173.81,0.5946434]
[1730131018527,17.20365786,173.82,173.81,0.5946434]
[1730131022559,71.08054186,173.82,173.81,0.5946434]
[1730131023637,41.08054186,173.82,173.81,0.5946434]
[1730131025656,41.08054186,173.82,173.7,52.06683144]
[1730131025657,70.0,173.69,173.66,11.45065786]
[1730131025863,70.0,173.69,173.63,16.3264434]
[1730131026066,70.0,173.69,173.66,11.45065786]
[1730131026438,70.0,173.69,173.63,0.5946434]
[1730131026734,70.0,173.69,173.65,11.45065786]
[1730131026933,70.0,173.69,173.63,0.5946434]
[1730131027153,70.0,173.67,173.65,11.45065786]
[1730131027341,70.0,173.7,173.66,11.45065786]
[1730131028250,70.0,173.7,173.65,16.1462]
[1730131028449,70.0,173.7,173.66,11.45065786]
[1730131028770,70.0,173.7,173.65,27.59685786]
[1730131029556,70.0,173.7,173.65,16.1462]
[1730131029760,81.45065786,173.7,173.65,16.1462]
[1730131030145,70.0,173.68,173.63,0.5946434]
[1730131030347,70.0,173.68,173.64,11.45065786]
[1730131030865,70.0,173.68,173.63,0.5946434]
[1730131031062,70.0,173.68,173.64,11.45065786]
[1730131031435,70.0,173.7,173.66,11.45065786]
[1730131031856,70.0,173.7,173.67,11.45065786]
[1730131032055,70.0,173.72,173.67,11.45065786]
[1730131032439,71.00121547,173.72,173.64,23.776884]
[1730131032641,70.0,173.74,173.71,11.45065786]
[1730131032952,70.0,173.76,173.72,11.45065786]
[1730131033346,81.45065786,173.78,173.72,11.45065786]
[1730131033551,70.0,173.78,173.73,11.45065786]
[1730131033859,81.45065786,173.78,173.72,26.98275786]
[1730131034360,81.45065786,173.78,173.72,15.5321]
[1730131034361,70.0,173.76,173.72,15.5321]
[1730131034748,87.91619277,173.76,173.72,15.5321]
[1730131034950,17.91619277,173.75,173.72,15.5321]
[1730131035744,87.91619277,173.76,173.72,15.5321]
[1730131035946,17.91619277,173.75,173.72,15.5321]
[1730131036773,87.91619277,173.76,173.72,15.5321]
[1730131037564,70.0,173.74,173.72,15.5321]
[1730131037948,70.0,173.74,173.69,24.27269277]
[1730131038270,23.67159277,173.75,173.69,24.27269277]
[1730131038271,70.0,173.72,173.69,24.27269277]
[1730131038776,70.0,173.72,173.69,6.3565]
[1730131038978,70.0,173.72,173.68,33.20889277]
[1730131042358,70.0,173.74,173.68,15.2927]
[1730131042559,70.0,173.74,173.7,17.91619277]
[1730131043176,87.91619277,173.74,173.68,33.20889277]
[1730131045075,70.0,173.74,173.69,17.91619277]
[1730131045863,87.91619277,173.74,173.68,33.20889277]
[1730131046783,17.91619277,173.73,173.68,15.2927]
[1730131048383,17.91619277,173.75,173.69,41.69307677]
[1730131049600,17.91619277,173.74,173.69,23.776884]
[1730131051166,17.91619277,173.75,173.69,41.69307677]
[1730131052681,17.91619277,173.75,173.7,0.86375544]
[1730131053274,17.91619277,173.74,173.7,0.86375544]
[1730131053471,17.91619277,173.73,173.7,0.86375544]
[1730131053670,17.91619277,173.71,173.68,15.2927]
[1730131053869,70.0,173.73,173.68,15.2927]
[1730131053870,17.91619277,173.7,173.68,15.2927]
[1730131054070,17.91619277,173.69,173.63,0.5946434]
[1730131054385,17.91619277,173.69,173.63,18.51083617]
[1730131054606,17.91619277,173.7,173.63,18.51083617]
[1730131054772,11.47447586,173.69,173.63,12.06911926]
[1730131055576,11.47447586,173.69,173.64,23.776884]
[1730131057592,11.47447586,173.68,173.64,23.776884]
[1730131057889,11.47447586,173.66,173.63,20.5946434]
[1730131058094,11.47447586,173.67,173.63,20.5946434]
[1730131058478,11.47447586,173.67,173.63,0.5946434]
[1730131059897,70.0,173.69,173.63,12.06911926]
[1730131060081,81.47447586,173.69,173.63,12.06911926]
[1730131060479,11.47447586,173.68,173.63,20.5946434]
[1730131062304,70.0,173.67,173.63,0.5946434]
[1730131063017,70.0,173.64,173.63,0.5946434]
[1730131064310,87.23347586,173.64,173.63,0.5946434]
[1730131064522,75.759,173.64,173.63,0.5946434]
[1730131066692,70.0,173.64,173.63,0.5946434]
[1730131068419,75.759,173.64,173.63,0.5946434]
[1730131068592,70.0,173.64,173.63,0.5946434]
[1730131072218,112.11216076,173.64,173.63,0.5946434]
[1730131072921,88.33527676,173.64,173.63,0.5946434]
[1730131074021,88.23527676,173.64,173.63,0.5946434]
[1730131074524,112.11216076,173.64,173.63,0.5946434]
[1730131074821,118.11862525,173.64,173.63,0.5946434]
[1730131075617,123.12173523,173.64,173.63,0.5946434]
[1730131076319,87.77037537,173.64,173.63,0.5946434]
[1730131076501,99.24485123,173.64,173.63,0.5946434]
[1730131077518,92.23658584,173.64,173.63,0.5946434]
[1730131078222,75.759,173.64,173.63,0.5946434]
[1730131078404,87.23347586,173.64,173.63,0.5946434]
[1730131079122,81.47447586,173.64,173.63,0.5946434]
[1730131079515,87.23347586,173.64,173.63,0.5946434]
[1730131079720,81.47447586,173.64,173.63,0.5946434]
[1730131080398,87.23347586,173.64,173.63,0.5946434]
[1730131082615,88.2352764,173.64,173.63,0.5946434]
[1730131085730,76.76080054,173.64,173.63,0.5946434]
[1730131086046,87.23347586,173.64,173.63,0.5946434]
[1730131086206,75.7586,173.66,173.63,0.5946434]
[1730131086405,87.23307586,173.66,173.63,0.5946434]
[1730131086625,5.7579,173.68,173.63,0.5946434]
[1730131086820,11.47447586,173.67,173.63,0.5946434]
[1730131087007,11.47447586,173.66,173.63,0.5946434]
[1730131087420,81.47447586,173.65,173.63,0.5946434]
[1730131087727,87.23317586,173.65,173.63,0.5946434]
[1730131088229,11.47447586,173.64,173.63,0.5946434]
[1730131088434,17.94268297,173.64,173.63,0.5946434]
[1730131089718,23.70168297,173.64,173.63,0.5946434]
[1730131090720,53.70168297,173.64,173.63,0.5946434]
[1730131092411,70.0,173.58,173.47,0.1]
[1730131092612,70.0,173.58,173.45,6.10435776]
[1730131092613,17.94268297,173.53,173.52,15.3281]
[1730131092832,70.0,173.56,173.52,15.3281]
[1730131093033,70.0,173.61,173.54,17.94268297]
[1730131093240,87.94268297,173.61,173.55,17.94268297]
[1730131093540,87.94268297,173.57,173.52,15.3281]
[1730131094121,70.0,173.55,173.52,15.3281]
[1730131094939,87.94268297,173.55,173.52,15.3281]
[1730131095320,17.94268297,173.54,173.51,0.86471346]
[1730131095832,70.0,173.55,173.46,0.5946434]
[1730131095833,70.0,173.49,173.46,0.5946434]
[1730131096029,17.94268297,173.48,173.46,0.5946434]
[1730131096414,87.94268297,173.49,173.46,0.5946434]
[1730131096615,17.94268297,173.48,173.46,0.5946434]
[1730131096825,17.94268297,173.49,173.46,0.5946434]
[1730131097021,87.94268297,173.51,173.46,18.53732637]
[1730131097437,93.70598297,173.51,173.46,0.5946434]
[1730131097629,17.94268297,173.5,173.46,0.5946434]
[1730131097828,70.0,173.51,173.46,18.53732637]
[1730131098028,70.0,173.51,173.47,33.08378297]
[1730131098619,70.0,173.51,173.47,15.1411]
[1730131098861,70.0,173.49,173.47,15.1411]
[1730131099344,70.0,173.49,173.46,0.5946434]
[1730131099543,70.0,173.51,173.48,17.94268297]
[1730131099730,70.0,173.58,173.51,15.6271]
[1730131099920,87.94268297,173.58,173.53,17.94268297]
[1730131100240,30.0,173.54,173.51,33.56978297]
[1730131100616,30.0,173.54,173.51,15.6271]
[1730131100818,87.94268297,173.53,173.46,0.5946434]
[1730131101056,5.7613,173.58,173.46,0.5946434]
[1730131101057,17.94268297,173.49,173.46,0.5946434]
[1730131101339,17.94268297,173.5,173.46,0.5946434]
[1730131101542,70.0,173.51,173.46,18.53732637]
[1730131102539,70.0,173.47,173.46,0.5946434]
[1730131102837,70.0,173.49,173.46,0.5946434]
[1730131103045,70.0,173.49,173.46,18.53732637]
[1730131103347,70.0,173.51,173.46,18.53732637]
[1730131104323,70.0,173.54,173.49,17.94268297]
[1730131105847,70.0,173.56,173.53,17.94268297]
[1730131106540,70.0,173.56,173.52,28.72773101]
[1730131107251,70.0,173.56,173.53,28.72773101]
[1730131107555,70.0,173.58,173.53,28.72773101]
[1730131107932,70.0,173.58,173.54,28.72773101]
[1730131108748,70.0,173.58,173.53,28.72773101]
[1730131109119,70.0,173.58,173.54,28.72773101]
[1730131109724,70.0,173.58,173.53,28.72773101]
[1730131110834,70.0,173.58,173.54,28.72773101]
[1730131111136,70.0,173.58,173.55,28.72773101]
[1730131111733,70.0,173.6,173.57,28.72773101]
[1730131112251,70.0,173.6,173.56,28.72773101]
[1730131112429,70.0,173.62,173.58,28.72773101]
[1730131112935,70.0,173.6,173.56,28.72773101]
[1730131113658,70.0,173.57,173.54,16.281]
[1730131114546,70.0,173.59,173.55,29.5922016]
[1730131114845,70.0,173.59,173.55,28.72773101]
[1730131115740,70.0,173.59,173.54,45.00873101]
[1730131119246,98.72773101,173.59,173.54,16.281]
[1730131119943,70.0,173.59,173.54,45.00873101]
[1730131120543,104.48843101,173.59,173.54,16.281]
[1730131121552,70.0,173.57,173.52,28.72773101]
[1730131122067,70.0,173.57,173.53,28.72773101]
[1730131122359,70.0,173.57,173.54,28.72773101]
[1730131122562,70.0,173.59,173.54,28.72773101]
[1730131122761,70.0,173.62,173.58,28.72773101]
[1730131123059,98.72773101,173.62,173.56,28.72773101]
[1730131123255,104.48743101,173.62,173.56,28.72773101]
[1730131123454,104.48743101,173.62,173.38,5.7674]
[1730131123455,70.0,173.48,173.46,0.5946434]
[1730131123768,98.72773101,173.48,173.46,0.5946434]
[1730131125365,28.72773101,173.48,173.46,0.5946434]
[1730131125534,28.72773101,173.5,173.46,0.5946434]
[1730131125738,28.72773101,173.48,173.46,0.5946434]
[1730131126168,28.72773101,173.49,173.46,0.5946434]
[1730131126456,17.97547937,173.48,173.46,0.5946434]
[1730131126639,17.97547937,173.47,173.46,0.5946434]
[1730131127563,17.97547937,173.48,173.46,0.5946434]
[1730131127867,17.97547937,173.47,173.46,0.5946434]
[1730131128756,17.97547937,173.48,173.46,0.5946434]
[1730131129068,17.97547937,173.47,173.46,0.5946434]
[1730131130846,70.0,173.48,173.46,0.5946434]
[1730131131047,17.97547937,173.47,173.46,0.5946434]
[1730131132366,1.00098155,173.47,173.46,0.5946434]
[1730131132673,18.97646092,173.47,173.46,0.5946434]
[1730131133056,24.74106092,173.47,173.46,0.5946434]
[1730131134786,54.74106092,173.47,173.46,0.5946434]
[1730131134985,31.00098155,173.47,173.46,0.5946434]
[1730131135279,18.97646092,173.47,173.46,0.5946434]
[1730131135667,1.00098155,173.47,173.46,0.5946434]
[1730131135861,24.74106092,173.47,173.46,0.5946434]
[1730131136059,18.97646092,173.47,173.46,0.5946434]
[1730131137851,88.97646092,173.47,173.46,0.5946434]
[1730131138051,94.74106092,173.47,173.46,0.5946434]
[1730131138777,124.74106092,173.47,173.46,0.5946434]
[1730131141980,106.76558155,173.47,173.46,0.5946434]
[1730131142157,124.74106092,173.47,173.46,0.5946434]
[1730131144883,94.74106092,173.47,173.46,0.5946434]
[1730131147866,124.74106092,173.47,173.46,0.5946434]
[1730131150363,101.00098155,173.47,173.46,0.5946434]
[1730131150565,118.97646092,173.47,173.46,0.5946434]
[1730131150868,124.74106092,173.47,173.46,0.5946434]
[1730131152186,101.00098155,173.47,173.46,0.5946434]
[1730131152380,106.76558155,173.47,173.46,0.5946434]
[1730131153098,105.7646,173.47,173.46,0.5946434]
[1730131153883,75.7646,173.47,173.46,0.5946434]
[1730131154595,5.7646,173.47,173.46,0.5946434]
[1730131154807,75.764,173.49,173.46,0.5946434]
[1730131154997,76.76321635,173.49,173.46,0.5946434]
[1730131155299,94.73869572,173.49,173.46,0.5946434]
[1730131156401,93.73947937,173.49,173.46,0.5946434]
[1730131156594,94.73876122,173.49,173.46,0.5946434]
[1730131156780,0.99928185,173.49,173.46,0.5946434]
[1730131156977,30.0,173.47,173.46,0.5946434]
[1730131160192,87.97547937,173.52,173.46,18.57012277]
[1730131160512,87.97547937,173.52,173.47,17.97547937]
[1730131160910,17.97547937,173.53,173.47,17.97547937]
[1730131161315,15.4771,173.56,173.46,0.5946434]
[1730131161316,70.0,173.5,173.46,0.5946434]
[1730131161689,70.0,173.5,173.46,18.57012277]
[1730131162510,17.97547937,173.51,173.46,18.57012277]
[1730131162689,70.0,173.52,173.46,18.57012277]
[1730131162690,87.97547937,173.52,173.46,18.57012277]
[1730131163015,87.97547937,173.52,173.47,17.97547937]
[1730131163207,70.0,173.52,173.47,17.97547937]
[1730131163407,87.97547937,173.52,173.47,17.97547937]
[1730131163605,17.97547937,173.53,173.47,17.97547937]
[1730131163920,87.97547937,173.54,173.48,17.97547937]
[1730131164088,17.97547937,173.53,173.47,17.97547937]
[1730131165315,87.97547937,173.54,173.48,17.97547937]
[1730131165813,0.9992939,173.56,173.48,17.97547937]
[1730131165814,70.9992939,173.56,173.51,17.97547937]
[1730131165989,70.0,173.56,173.51,17.97547937]
[1730131166696,70.0,173.56,173.52,17.97547937]
[1730131167320,7.51066233,173.59,173.49,23.776884]
[1730131167321,70.99906233,173.59,173.55,17.97547937]
[1730131167513,21.6757,173.64,173.49,23.776884]
[1730131167514,70.0,173.61,173.58,17.97547937]
[1730131167815,87.97547937,173.61,173.55,17.97547937]
[1730131168196,17.97547937,173.6,173.54,17.97547937]
[1730131168395,17.97547937,173.58,173.53,16.5906]
[1730131168592,17.97547937,173.57,173.53,16.5906]
[1730131168790,17.97547937,173.57,173.51,18.84015321]
[1730131169013,17.97547937,173.56,173.51,18.84015321]
[1730131169210,17.97547937,173.56,173.51,0.86467384]
[1730131169395,87.97547937,173.55,173.51,0.86467384]
[1730131169592,17.97547937,173.54,173.51,0.86467384]
[1730131169788,17.97547937,173.54,173.49,15.5569]
[1730131169789,87.97547937,173.53,173.49,15.5569]
[1730131170619,30.0,173.52,173.49,15.5569]
[1730131171505,30.0,173.52,173.49,33.53237937]
[1730131171913,30.0,173.52,173.49,15.5569]
[1730131175608,30.0,173.52,173.49,33.53237937]
[1730131175799,30.0,173.52,173.49,15.5569]
[1730131176002,17.97547937,173.54,173.49,15.5569]
[1730131177104,87.97547937,173.53,173.49,15.5569]
[1730131177431,47.97547937,173.51,173.46,0.5946434]
[1730131177924,30.0,173.51,173.47,17.97547937]
[1730131178606,30.0,173.51,173.48,17.97547937]
[1730131179016,30.0,173.51,173.47,41.75236337]
[1730131179224,30.0,173.51,173.48,17.97547937]
[1730131179522,30.0,173.51,173.49,17.97547937]
[1730131179724,30.0,173.51,173.47,23.776884]
[1730131179725,30.0,173.51,173.48,17.97547937]
[1730131180421,17.97547937,173.54,173.48,17.97547937]
[1730131182003,87.97547937,173.55,173.49,17.97547937]
[1730131182324,70.0,173.55,173.5,17.97547937]
[1730131183506,87.97547937,173.55,173.49,17.97547937]
[1730131184324,17.97547937,173.55,173.49,17.97547937]
[1730131184612,17.97547937,173.54,173.48,17.97547937]
[1730131184804,70.0,173.53,173.48,17.97547937]
[1730131185007,70.0,173.53,173.46,0.5946434]
[1730131185008,87.97547937,173.53,173.47,17.97547937]
[1730131185419,17.97547937,173.52,173.46,18.57012277]
[1730131185730,17.97547937,173.51,173.46,0.5946434]
[1730131186329,17.97547937,173.52,173.46,18.57012277]
[1730131189023,17.97547937,173.53,173.47,17.97547937]
[1730131189221,17.97547937,173.54,173.48,17.97547937]
[1730131189426,17.97547937,173.53,173.47,41.75236337]
[1730131189643,87.97547937,173.55,173.49,17.97547937]
[1730131190639,11.49609757,173.55,173.49,11.49609757]
[1730131190844,81.49609757,173.57,173.51,11.49609757]
[1730131191143,30.0,173.52,173.5,11.49609757]
[1730131191312,11.49609757,173.56,173.5,11.49609757]
[1730131192540,17.96084867,173.56,173.5,17.96084867]
[1730131194848,17.96084867,173.56,173.51,17.96084867]
[1730131195039,17.96084867,173.56,173.5,17.96084867]
[1730131195822,17.96084867,173.56,173.51,17.96084867]
[1730131197348,70.0,173.59,173.54,17.96084867]
[1730131197546,17.96084867,173.6,173.55,17.96084867]
[1730131198234,87.96084867,173.61,173.55,17.96084867]
[1730131198550,87.96084867,173.61,173.54,17.96084867]
[1730131198551,17.96084867,173.59,173.54,17.96084867]
[1730131198853,70.0,173.61,173.51,33.05794867]
[1730131198854,30.0,173.55,173.51,33.05794867]
[1730131199544,47.96084867,173.55,173.49,17.96084867]
[1730131199745,17.96084867,173.54,173.49,17.96084867]
[1730131199927,17.96084867,173.53,173.47,33.72154867]
[1730131200236,47.96084867,173.53,173.47,33.72154867]
[1730131200843,17.96084867,173.52,173.47,15.7607]
[1730131201345,30.0,173.53,173.47,15.7607]
[1730131201527,17.96084867,173.51,173.47,15.7607]
[1730131201727,17.96084867,173.51,173.46,18.55549207]
[1730131201929,17.96084867,173.51,173.47,23.776884]
[1730131202149,30.0,173.5,173.47,23.776884]
[1730131202334,30.0,173.5,173.46,0.5946434]
[1730131202542,47.96084867,173.5,173.47,23.776884]
[1730131203645,17.96084867,173.49,173.47,23.776884]
[1730131203944,30.0,173.48,173.47,23.776884]
[1730131204657,30.0,173.48,173.46,0.5946434]
[1730131204854,47.96084867,173.48,173.46,0.5946434]
[1730131205249,17.96084867,173.47,173.46,0.5946434]
[1730131205552,47.96084867,173.47,173.46,0.5946434]
[1730131206255,117.96084867,173.47,173.46,0.5946434]
[1730131206429,47.96084867,173.47,173.46,0.5946434]
[1730131206849,117.96084867,173.47,173.46,0.5946434]
[1730131207643,30.0,173.47,173.46,0.5946434]
[1730131208857,47.96084867,173.47,173.46,0.5946434]
[1730131209666,117.96084867,173.47,173.46,0.5946434]
[1730131212531,30.0,173.47,173.46,0.5946434]
[1730131213630,41.50701431,173.47,173.46,0.5946434]
[1730131215347,30.0,173.47,173.46,0.5946434]
[1730131217764,30.0,173.47,173.46,39.9178274]
[1730131218064,30.0,173.47,173.46,51.42484171]
[1730131218643,11.50701431,173.53,173.47,23.776884]
[1730131218844,11.50701431,173.52,173.47,23.776884]
[1730131219050,0.99895379,173.58,173.5,23.776884]
[1730131219246,70.0,173.57,173.47,23.776884]
[1730131219535,70.0,173.55,173.48,11.50701431]
[1730131219744,0.99895379,173.58,173.46,16.1409434]
[1730131219745,11.50701431,173.52,173.46,16.1409434]
[1730131219954,11.50701431,173.52,173.46,27.74795771]
[1730131220265,11.50701431,173.52,173.46,27.64795771]
[1730131220437,70.0,173.53,173.46,34.20851088]
[1730131220638,17.96756748,173.51,173.46,34.10851088]
[1730131220837,17.96756748,173.53,173.47,17.96756748]
[1730131221160,17.96756748,173.54,173.48,17.96756748]
[1730131221666,70.0,173.53,173.46,16.1409434]
[1730131221835,17.96756748,173.48,173.46,0.5946434]
[1730131222352,17.91790748,173.48,173.46,0.5946434]
[1730131222662,70.0,173.49,173.46,0.5946434]
[1730131222663,17.96756748,173.47,173.46,0.5946434]
[1730131222837,47.96756748,173.47,173.46,0.5946434]
[1730131223238,117.96756748,173.47,173.46,0.5946434]
[1730131226552,123.94408378,173.47,173.46,0.5946434]
[1730131226773,124.04408378,173.47,173.46,0.5946434]
[1730131226963,124.04408378,173.47,173.35,15.6126]
[1730131226964,70.0,173.39,173.35,15.6126]
[1730131227162,87.96756748,173.39,173.35,15.6126]
[1730131227677,87.96756748,173.41,173.35,33.58016748]
[1730131228049,17.96756748,173.42,173.35,33.58016748]
[1730131228368,17.96756748,173.44,173.38,17.96756748]
[1730131228569,30.0,173.39,173.35,15.6126]
[1730131228762,30.0,173.39,173.38,17.96756748]
[1730131228959,87.96756748,173.45,173.38,17.96756748]
[1730131229474,17.96756748,173.44,173.38,17.96756748]
[1730131229979,17.96756748,173.44,173.37,17.96756748]
[1730131230761,70.0,173.48,173.41,17.96756748]
[1730131230957,17.96756748,173.46,173.4,24.31596748]
[1730131231150,17.96756748,173.46,173.37,0.1]
[1730131231151,17.96756748,173.44,173.37,0.86539604]
[1730131231353,17.96756748,173.4,173.37,0.86539604]
[1730131231559,70.0,173.41,173.37,0.86539604]
[1730131231752,17.96756748,173.39,173.31,16.5221]
[1730131231958,17.96756748,173.35,173.31,16.5221]
[1730131232158,17.96756748,173.36,173.31,16.5221]
[1730131232559,17.96756748,173.37,173.31,34.48966748]
[1730131233948,17.96756748,173.37,173.31,35.35534717]
[1730131234555,17.96756748,173.35,173.28,17.0414434]
[1730131234770,17.96756748,173.35,173.29,17.96756748]
[1730131236749,17.96756748,173.34,173.29,23.776884]
[1730131237651,15.1343,173.4,173.29,23.776884]
[1730131237652,17.96756748,173.35,173.29,41.74445148]
[1730131238156,17.96756748,173.34,173.29,41.74445148]
[1730131238475,17.96756748,173.35,173.29,41.74445148]
[1730131239078,17.96756748,173.34,173.29,23.776884]
[1730131239370,17.96756748,173.34,173.28,35.00901088]
[1730131240364,17.96756748,173.34,173.29,17.96756748]
[1730131242360,70.0,173.4,173.31,23.776884]
[1730131242553,17.96756748,173.38,173.33,17.96756748]
[1730131242882,17.96756748,173.36,173.31,17.96756748]
[1730131243059,17.96756748,173.35,173.3,17.96756748]
[1730131244483,17.96756748,173.35,173.29,41.74445148]
[1730131245485,87.96756748,173.35,173.29,17.96756748]
[1730131245998,17.96756748,173.34,173.29,17.96756748]
[1730131247466,87.96756748,173.35,173.29,17.96756748]
[1730131247667,17.96756748,173.34,173.29,17.96756748]
[1730131247864,17.96756748,173.34,173.28,35.87485913]
[1730131248698,17.96756748,173.33,173.28,35.87485913]
[1730131248877,87.96756748,173.33,173.28,35.87485913]
[1730131249079,87.96756748,173.33,173.28,17.90729165]
[1730131249397,17.96756748,173.32,173.28,17.90729165]
[1730131251273,70.0,173.33,173.28,17.90729165]
[1730131251274,17.96756748,173.31,173.28,0.5946434]
[1730131252320,70.0,173.35,173.29,17.96756748]
[1730131252467,17.96756748,173.33,173.28,18.56221088]
[1730131252672,17.96756748,173.33,173.28,0.5946434]
[1730131253383,17.96756748,173.32,173.28,0.5946434]
[1730131253985,17.96756748,173.31,173.28,0.5946434]
[1730131254203,17.96756748,173.32,173.28,0.5946434]
[1730131254604,17.96756748,173.31,173.28,0.5946434]
[1730131254907,87.96756748,173.33,173.28,18.56221088]
[1730131255503,87.96756748,173.33,173.28,0.5946434]
[1730131255797,87.96756748,173.33,173.28,18.56221088]
[1730131255798,17.96756748,173.33,173.28,18.56221088]
[1730131256105,17.96756748,173.34,173.28,18.56221088]
[1730131256273,17.96756748,173.33,173.28,18.56221088]
[1730131257289,17.96756748,173.34,173.28,18.56221088]
[1730131257589,17.96756748,173.33,173.28,18.56221088]
[1730131257791,17.96756748,173.33,173.28,0.5946434]
[1730131258701,17.96756748,173.34,173.28,18.56221088]
[1730131259077,17.96756748,173.33,173.28,0.5946434]
[1730131260083,17.96756748,173.32,173.28,0.5946434]
[1730131260505,11.52529446,173.32,173.28,0.5946434]
[1730131261110,11.52529446,173.31,173.28,0.5946434]
[1730131261808,81.52529446,173.31,173.28,0.5946434]
[1730131262399,70.0,173.31,173.28,0.5946434]
[1730131263203,70.0,173.33,173.29,11.52529446]
[1730131263508,11.52529446,173.34,173.29,11.52529446]
[1730131263734,70.0,173.37,173.31,11.52529446]
[1730131263912,81.52529446,173.37,173.31,11.52529446]
[1730131264111,11.52529446,173.36,173.3,11.52529446]
[1730131264432,11.52529446,173.36,173.3,12.39103311]
[1730131266431,81.52529446,173.37,173.31,11.52529446]
[1730131266635,17.99812479,173.36,173.3,18.86386344]
[1730131267520,17.99812479,173.35,173.29,41.77500879]
[1730131268908,87.99812479,173.34,173.28,18.59276819]
[1730131269313,87.99812479,173.34,173.29,17.99812479]
[1730131269613,87.99812479,173.36,173.3,17.99812479]
[1730131269816,17.99812479,173.35,173.29,17.99812479]
[1730131271122,70.0,173.34,173.29,17.99812479]
[1730131271333,17.99812479,173.35,173.29,17.99812479]
[1730131271633,70.0,173.34,173.29,17.99812479]
[1730131272026,17.99812479,173.35,173.29,17.99812479]
[1730131273051,87.99812479,173.34,173.29,17.99812479]
[1730131273221,17.99812479,173.34,173.29,17.99812479]
[1730131274018,87.99812479,173.36,173.3,17.99812479]
[1730131275046,17.99812479,173.35,173.29,17.99812479]
[1730131276630,17.99812479,173.34,173.29,17.99812479]
[1730131277521,17.99812479,173.35,173.29,17.99812479]
[1730131277740,17.99812479,173.35,173.3,17.99812479]
[1730131277941,17.99812479,173.35,173.29,17.99812479]
[1730131279726,17.99812479,173.34,173.29,17.99812479]
[1730131280142,17.99812479,173.35,173.29,17.99812479]
[1730131280356,17.99812479,173.35,173.3,17.99812479]
[1730131280643,0.11081794,173.31,173.28,1.46047476]
[1730131281034,18.10894273,173.31,173.28,0.5946434]
[1730131282438,17.99812479,173.29,173.28,0.5946434]
[1730131283449,0.11081794,173.31,173.28,0.5946434]
[1730131283450,17.99812479,173.3,173.28,0.5946434]
[1730131283646,17.99812479,173.29,173.28,0.5946434]
[1730131284834,47.99812479,173.29,173.28,0.5946434]
[1730131285043,30.0,173.29,173.28,0.5946434]
[1730131285627,47.99812479,173.29,173.28,0.5946434]
[1730131286330,17.99812479,173.29,173.28,0.5946434]
[1730131286537,11.52886192,173.29,173.28,0.5946434]
[1730131287227,87.29926192,173.3,173.28,0.5946434]
[1730131287830,30.0,173.29,173.28,0.5946434]
[1730131289250,11.52886192,173.3,173.28,0.5946434]
[1730131290061,11.52886192,173.29,173.28,0.5946434]
[1730131290831,5.24,173.29,173.28,0.5946434]
[1730131291554,16.76886192,173.29,173.28,0.5946434]
[1730131291957,86.76886192,173.29,173.28,0.5946434]
[1730131292140,92.53946192,173.29,173.28,0.5946434]
[1730131296936,5.24,173.29,173.28,0.5946434]
[1730131298158,22.53946192,173.29,173.28,0.5946434]
[1730131298467,11.0106,173.29,173.28,0.5946434]
[1730131300657,11.1191647,173.29,173.28,0.5946434]
[1730131301437,5.3485647,173.29,173.28,0.5946434]
[1730131306946,92.64802662,173.29,173.28,0.5946434]
[1730131308062,81.1191647,173.29,173.28,0.5946434]
[1730131309577,92.64802662,173.29,173.28,0.5946434]